[Event "Live Chess"]
[Site "Chess.com"]
[Date "2024.06.02"]
[Round "-"]
[White "OnlyTheHurf"]
[Black "mychess51"]
[Result "0-1"]
[WhiteElo "1128"]
[BlackElo "1706"]
[TimeControl "300"]
[EndTime "8:37:24 PDT"]
[Termination "mychess51 won by checkmate"]

1. c4 {[%clk 0:04:55]} 1... e6 {[%clk 0:04:59.9]} 2. g3 {[%clk 0:04:53.8]} 2...
d5 {[%clk 0:04:59.8]} 3. Nf3 {[%clk 0:04:50.2]} 3... dxc4 {[%clk 0:04:57.7]} 4.
Qa4+ {[%clk 0:04:49.8]} 4... Bd7 {[%clk 0:04:55.8]} 5. Qxc4 {[%clk 0:04:49.1]}
5... Nc6 {[%clk 0:04:55.1]} 6. Bg2 {[%clk 0:04:47.2]} 6... Nf6 {[%clk 0:04:54]}
7. d4 {[%clk 0:04:43.5]} 7... Bd6 {[%clk 0:04:51.6]} 8. O-O {[%clk 0:04:42.1]}
8... O-O {[%clk 0:04:49.8]} 9. Ne5 {[%clk 0:04:41]} 9... Nxe5 {[%clk 0:04:22.1]}
10. dxe5 {[%clk 0:04:22]} 10... Bxe5 {[%clk 0:04:22]} 11. Bxb7 {[%clk
0:04:19.6]} 11... Rb8 {[%clk 0:04:20]} 12. Bg2 {[%clk 0:04:16]} 12... Bxb2
{[%clk 0:04:11.9]} 13. Bxb2 {[%clk 0:04:14.4]} 13... Rxb2 {[%clk 0:04:10.5]} 14.
Nc3 {[%clk 0:04:12]} 14... Qb8 {[%clk 0:03:51.7]} 15. Rab1 {[%clk 0:04:09.4]}
15... a6 {[%clk 0:03:09]} 16. Qxa6 {[%clk 0:03:51.5]} 16... c5 {[%clk
0:02:51.8]} 17. Qa3 {[%clk 0:03:47.1]} 17... Rxb1 {[%clk 0:02:46.7]} 18. Rxb1
{[%clk 0:03:43.7]} 18... Qe5 {[%clk 0:02:45.5]} 19. Rf1 {[%clk 0:03:33.2]} 19...
Rc8 {[%clk 0:02:38]} 20. Bb7 {[%clk 0:03:17]} 20... Rb8 {[%clk 0:02:32.4]} 21.
Bg2 {[%clk 0:03:15.1]} 21... Ng4 {[%clk 0:02:20.9]} 22. e3 {[%clk 0:03:08.6]}
22... Qc7 {[%clk 0:02:12.2]} 23. Rb1 {[%clk 0:02:53.5]} 23... Rxb1+ {[%clk
0:02:08.1]} 24. Nxb1 {[%clk 0:02:53.4]} 24... c4 {[%clk 0:02:04.3]} 25. Qa8+
{[%clk 0:02:51.9]} 25... Qc8 {[%clk 0:02:01.8]} 26. a4 {[%clk 0:02:42.1]} 26...
Qxa8 {[%clk 0:01:56.6]} 27. Bxa8 {[%clk 0:02:40]} 27... Bxa4 {[%clk 0:01:55.4]}
28. Nc3 {[%clk 0:02:38.5]} 28... Bb3 {[%clk 0:01:48.4]} 29. Bf3 {[%clk
0:02:36.7]} 29... Ne5 {[%clk 0:01:47]} 30. Be2 {[%clk 0:02:35]} 30... Kf8 {[%clk
0:01:43.7]} 31. Kg2 {[%clk 0:02:33.9]} 31... Ke7 {[%clk 0:01:42]} 32. f4 {[%clk
0:02:33.1]} 32... Nd3 {[%clk 0:01:38.8]} 33. Kf3 {[%clk 0:02:32]} 33... Kd6
{[%clk 0:01:31.5]} 34. Ke4 {[%clk 0:02:30.5]} 34... Nb2 {[%clk 0:01:23.3]} 35.
h4 {[%clk 0:02:25.7]} 35... f6 {[%clk 0:01:21.2]} 36. g4 {[%clk 0:02:24.2]}
36... Kc5 {[%clk 0:01:19.9]} 37. f5 {[%clk 0:02:17.1]} 37... exf5+ {[%clk
0:01:18]} 38. gxf5 {[%clk 0:02:17]} 38... Kb4 {[%clk 0:01:17.1]} 39. Nd5+ {[%clk
0:02:14.6]} 39... Kc5 {[%clk 0:01:15.5]} 40. Nc3 {[%clk 0:02:12.8]} 40... Na4
{[%clk 0:01:13.2]} 41. Bxc4 {[%clk 0:02:03.4]} 41... Nxc3+ {[%clk 0:01:08.6]}
42. Kd3 {[%clk 0:02:01.3]} 42... Bxc4+ {[%clk 0:01:07.6]} 43. Kxc3 {[%clk
0:02:00.6]} 43... Be2 {[%clk 0:01:05.9]} 44. Kd2 {[%clk 0:01:59.3]} 44... Bg4
{[%clk 0:01:04.2]} 45. e4 {[%clk 0:01:58]} 45... Kd4 {[%clk 0:01:03.4]} 46. Kc2
{[%clk 0:01:56.6]} 46... Kxe4 {[%clk 0:01:02.4]} 47. Kc3 {[%clk 0:01:54.3]}
47... Bxf5 {[%clk 0:01:01.2]} 48. Kd2 {[%clk 0:01:53.3]} 48... g5 {[%clk
0:00:59.9]} 49. Ke2 {[%clk 0:01:53.2]} 49... gxh4 {[%clk 0:00:58.6]} 50. Kf2
{[%clk 0:01:53]} 50... Kf4 {[%clk 0:00:57.7]} 51. Kg2 {[%clk 0:01:52.9]} 51...
Bg4 {[%clk 0:00:56.3]} 52. Kh2 {[%clk 0:01:51.7]} 52... Kf3 {[%clk 0:00:55.4]}
53. Kh1 {[%clk 0:01:50.2]} 53... Kg3 {[%clk 0:00:54.6]} 54. Kg1 {[%clk
0:01:49.1]} 54... Bf3 {[%clk 0:00:53.3]} 55. Kf1 {[%clk 0:01:47.7]} 55... h3
{[%clk 0:00:53.2]} 56. Kg1 {[%clk 0:01:46.3]} 56... h2+ {[%clk 0:00:53.1]} 57.
Kf1 {[%clk 0:01:45.1]} 57... h1=Q# {[%clk 0:00:50.8]} 0-1

[Event "Live Chess"]
[Site "Chess.com"]
[Date "2024.06.02"]
[Round "-"]
[White "LL220284LL"]
[Black "nitrofish07"]
[Result "1-0"]
[WhiteElo "2485"]
[BlackElo "2096"]
[TimeControl "300"]
[EndTime "8:37:28 PDT"]
[Termination "LL220284LL won by resignation"]

1. b3 {[%clk 0:04:54.1]} 1... e5 {[%clk 0:04:58.7]} 2. Bb2 {[%clk 0:04:52.6]}
2... Nc6 {[%clk 0:04:58.6]} 3. Nf3 {[%clk 0:04:51.1]} 3... d6 {[%clk 0:04:53.9]}
4. d3 {[%clk 0:04:49.6]} 4... g6 {[%clk 0:04:53.1]} 5. e4 {[%clk 0:04:43.3]}
5... Bg7 {[%clk 0:04:52.5]} 6. Nbd2 {[%clk 0:04:42.3]} 6... Nge7 {[%clk
0:04:52.2]} 7. Be2 {[%clk 0:04:41.1]} 7... O-O {[%clk 0:04:52.1]} 8. h4 {[%clk
0:04:40.4]} 8... f5 {[%clk 0:04:48.2]} 9. h5 {[%clk 0:04:34.8]} 9... f4 {[%clk
0:04:45.9]} 10. hxg6 {[%clk 0:04:32.1]} 10... Nxg6 {[%clk 0:04:44.3]} 11. Nc4
{[%clk 0:04:26.5]} 11... a5 {[%clk 0:04:43.1]} 12. a4 {[%clk 0:04:25]} 12... Be6
{[%clk 0:04:40.9]} 13. Qd2 {[%clk 0:04:20.4]} 13... d5 {[%clk 0:04:35.2]} 14.
exd5 {[%clk 0:04:17.8]} 14... Bxd5 {[%clk 0:04:33.6]} 15. O-O-O {[%clk 0:04:15]}
15... e4 {[%clk 0:04:30.4]} 16. Bxg7 {[%clk 0:04:08.9]} 16... Kxg7 {[%clk
0:04:30.3]} 17. dxe4 {[%clk 0:04:03.1]} 17... Bxe4 {[%clk 0:04:29.5]} 18. Qc3+
{[%clk 0:03:59.8]} 18... Qf6 {[%clk 0:04:27.5]} 19. Rd7+ {[%clk 0:03:58.6]}
19... Rf7 {[%clk 0:04:25.5]} 20. Rxh7+ {[%clk 0:03:44.2]} 20... Kxh7 {[%clk
0:04:19.6]} 21. Qxf6 {[%clk 0:03:43.9]} 21... Rxd7 {[%clk 0:04:17.8]} 22. Ng5+
{[%clk 0:03:42.1]} 22... Kh6 {[%clk 0:04:13.8]} 23. Nxe4 {[%clk 0:03:40.5]} 1-0

[Event "Live Chess"]
[Site "Chess.com"]
[Date "2024.06.02"]
[Round "-"]
[White "juniortay"]
[Black "Dashman93"]
[Result "0-1"]
[WhiteElo "2246"]
[BlackElo "2143"]
[TimeControl "300"]
[EndTime "8:37:36 PDT"]
[Termination "Dashman93 won on time"]

1. e4 {[%clk 0:04:57.3]} 1... g6 {[%clk 0:04:59]} 2. Nc3 {[%clk 0:04:55.6]} 2...
Bg7 {[%clk 0:04:58.9]} 3. f4 {[%clk 0:04:54.7]} 3... c5 {[%clk 0:04:58]} 4. Nf3
{[%clk 0:04:53.9]} 4... Nc6 {[%clk 0:04:52.2]} 5. Bc4 {[%clk 0:04:52.5]} 5... e6
{[%clk 0:04:50.2]} 6. f5 {[%clk 0:04:51.5]} 6... gxf5 {[%clk 0:04:41.2]} 7. d3
{[%clk 0:04:47.4]} 7... fxe4 {[%clk 0:04:20.6]} 8. dxe4 {[%clk 0:04:45.1]} 8...
Nge7 {[%clk 0:04:19.9]} 9. O-O {[%clk 0:04:42.8]} 9... d5 {[%clk 0:04:17.7]} 10.
exd5 {[%clk 0:04:40.2]} 10... exd5 {[%clk 0:04:15]} 11. Nxd5 {[%clk 0:04:38.2]}
11... Be6 {[%clk 0:04:14.1]} 12. Re1 {[%clk 0:04:15.6]} 12... O-O {[%clk
0:04:05.3]} 13. Nxe7+ {[%clk 0:03:53.4]} 13... Nxe7 {[%clk 0:04:03.4]} 14. Qe2
{[%clk 0:03:39]} 14... Bxc4 {[%clk 0:03:56.8]} 15. Qxc4 {[%clk 0:03:35.9]} 15...
Nc6 {[%clk 0:03:56.2]} 16. Bg5 {[%clk 0:03:31.8]} 16... Qb6 {[%clk 0:03:49.2]}
17. Re4 {[%clk 0:03:13.7]} 17... Qxb2 {[%clk 0:03:44.9]} 18. Rf1 {[%clk
0:03:08.3]} 18... Qc3 {[%clk 0:03:40.4]} 19. Qd5 {[%clk 0:02:53]} 19... Nb4
{[%clk 0:03:32.3]} 20. Qf5 {[%clk 0:02:49.7]} 20... Qxc2 {[%clk 0:03:30.7]} 21.
Ne5 {[%clk 0:01:48.6]} 21... Rae8 {[%clk 0:03:06.8]} 22. Rc1 {[%clk 0:00:59.9]}
22... Rxe5 {[%clk 0:02:51.2]} 23. Rxe5 {[%clk 0:00:56.8]} 23... Qxf5 {[%clk
0:02:48.4]} 24. Rxf5 {[%clk 0:00:51.9]} 24... Nxa2 {[%clk 0:02:47.8]} 25. Rcf1
{[%clk 0:00:44.6]} 25... Nc3 {[%clk 0:02:44.5]} 26. Be7 {[%clk 0:00:38.6]} 26...
Rc8 {[%clk 0:02:40.1]} 27. Rxf7 {[%clk 0:00:33.6]} 27... Nd5 {[%clk 0:02:35.7]}
28. Bd6 {[%clk 0:00:28.7]} 28... Ne3 {[%clk 0:02:32.1]} 29. R1f3 {[%clk
0:00:22.2]} 29... Nc4 {[%clk 0:02:26.6]} 30. Bg3 {[%clk 0:00:16.1]} 30... Nd2
{[%clk 0:02:23.5]} 31. R3f5 {[%clk 0:00:13.9]} 31... c4 {[%clk 0:02:21.7]} 32.
Rxb7 {[%clk 0:00:11.4]} 32... c3 {[%clk 0:02:20.5]} 33. Be1 {[%clk 0:00:08.3]}
33... Ne4 {[%clk 0:02:17.5]} 34. Bxc3 {[%clk 0:00:06.3]} 34... Nxc3 {[%clk
0:02:13.8]} 35. h4 {[%clk 0:00:04.4]} 35... Ne4 {[%clk 0:02:10.7]} 36. Rf4
{[%clk 0:00:01.9]} 36... Nd6 {[%clk 0:02:08.7]} 37. Rxa7 {[%clk 0:00:00.5]}
37... Rc1+ {[%clk 0:02:07]} 0-1

[Event "Live Chess"]
[Site "Chess.com"]
[Date "2024.06.02"]
[Round "-"]
[White "ShanthamGrarks"]
[Black "Colm_Buckley"]
[Result "0-1"]
[WhiteElo "1902"]
[BlackElo "1893"]
[TimeControl "300"]
[EndTime "8:37:53 PDT"]
[Termination "Colm_Buckley won by resignation"]

1. d4 {[%clk 0:04:51.2]} 1... e6 {[%clk 0:04:58.3]} 2. Nc3 {[%clk 0:04:48.3]}
2... Nf6 {[%clk 0:04:54.7]} 3. e4 {[%clk 0:04:47.5]} 3... d5 {[%clk 0:04:51.5]}
4. Bg5 {[%clk 0:04:43.6]} 4... Be7 {[%clk 0:04:46.3]} 5. e5 {[%clk 0:04:42.6]}
5... Nfd7 {[%clk 0:04:44.9]} 6. h4 {[%clk 0:04:42.2]} 6... h6 {[%clk 0:04:41.8]}
7. Bf4 {[%clk 0:04:40.4]} 7... c5 {[%clk 0:04:31.4]} 8. Qg4 {[%clk 0:04:37.6]}
8... g6 {[%clk 0:04:23.1]} 9. Bd3 {[%clk 0:04:35]} 9... h5 {[%clk 0:04:04.7]}
10. Qg3 {[%clk 0:04:31.7]} 10... cxd4 {[%clk 0:04:03.8]} 11. Nb5 {[%clk
0:04:29.4]} 11... Rg8 {[%clk 0:03:45.7]} 12. Nf3 {[%clk 0:04:24.6]} 12... Nc6
{[%clk 0:03:31.4]} 13. Ng5 {[%clk 0:04:20.6]} 13... Nc5 {[%clk 0:02:59.9]} 14.
Nd6+ {[%clk 0:03:51.9]} 14... Bxd6 {[%clk 0:02:56.9]} 15. exd6 {[%clk
0:03:48.7]} 15... Nxd3+ {[%clk 0:02:54]} 16. Qxd3 {[%clk 0:03:41]} 16... e5
{[%clk 0:02:46.3]} 17. O-O-O {[%clk 0:03:24.2]} 17... exf4 {[%clk 0:02:30.7]}
18. Rhe1+ {[%clk 0:02:24.9]} 18... Kf8 {[%clk 0:02:24.4]} 19. Qf3 {[%clk
0:02:00.5]} 19... Qxd6 {[%clk 0:02:03.9]} 0-1

[Event "Live Chess"]
[Site "Chess.com"]
[Date "2024.06.02"]
[Round "-"]
[White "GerardATHart"]
[Black "FlyingChessKestrel13"]
[Result "0-1"]
[WhiteElo "1395"]
[BlackElo "2079"]
[TimeControl "300"]
[EndTime "8:38:12 PDT"]
[Termination "FlyingChessKestrel13 won by resignation"]

1. e4 {[%clk 0:04:51.3]} 1... c5 {[%clk 0:04:56.4]} 2. Nc3 {[%clk 0:04:49.4]}
2... Nc6 {[%clk 0:04:55.3]} 3. Bb5 {[%clk 0:04:48.1]} 3... e6 {[%clk 0:04:54]}
4. Nf3 {[%clk 0:04:46.4]} 4... Nge7 {[%clk 0:04:52.8]} 5. d4 {[%clk 0:04:44.1]}
5... cxd4 {[%clk 0:04:51.2]} 6. Nxd4 {[%clk 0:04:42.6]} 6... a6 {[%clk
0:04:50.7]} 7. Bxc6 {[%clk 0:04:41]} 7... Nxc6 {[%clk 0:04:49.2]} 8. Be3 {[%clk
0:04:37]} 8... Be7 {[%clk 0:04:46.7]} 9. Qd2 {[%clk 0:04:35.2]} 9... O-O {[%clk
0:04:45.8]} 10. O-O-O {[%clk 0:04:32.8]} 10... Bf6 {[%clk 0:04:40.1]} 11. f4
{[%clk 0:04:18.6]} 11... Nxd4 {[%clk 0:04:29.9]} 12. Bxd4 {[%clk 0:04:16.5]}
12... Bxd4 {[%clk 0:04:29.6]} 13. Qxd4 {[%clk 0:04:15]} 13... Qa5 {[%clk
0:04:29.1]} 14. e5 {[%clk 0:04:05.4]} 14... b5 {[%clk 0:04:25.6]} 15. a3 {[%clk
0:04:03.7]} 15... Rb8 {[%clk 0:04:23.9]} 16. Ne4 {[%clk 0:04:01.1]} 16... b4
{[%clk 0:04:19.8]} 17. Rd3 {[%clk 0:03:56.2]} 17... Bb7 {[%clk 0:04:11.8]} 18.
Nf6+ {[%clk 0:03:52.5]} 18... Kh8 {[%clk 0:03:59.4]} 19. Rh3 {[%clk 0:03:29.5]}
19... gxf6 {[%clk 0:03:56.3]} 20. exf6 {[%clk 0:03:21.1]} 20... Qf5 {[%clk
0:03:51.6]} 21. Rg1 {[%clk 0:02:46.4]} 21... bxa3 {[%clk 0:03:45.9]} 22. bxa3
{[%clk 0:02:42.5]} 22... Qe4 {[%clk 0:03:37]} 23. Qd1 {[%clk 0:02:20.9]} 23...
Qxf4+ {[%clk 0:03:31.9]} 24. Qd2 {[%clk 0:02:12.8]} 24... Qxd2+ {[%clk
0:03:30.1]} 25. Kxd2 {[%clk 0:02:11.3]} 25... Be4 {[%clk 0:03:25.9]} 26. Rh1
{[%clk 0:02:01.8]} 26... Bxg2 {[%clk 0:03:23.1]} 0-1

[Event "Live Chess"]
[Site "Chess.com"]
[Date "2024.06.02"]
[Round "-"]
[White "Pandreq"]
[Black "Karasyov2"]
[Result "0-1"]
[WhiteElo "1222"]
[BlackElo "1227"]
[TimeControl "300"]
[EndTime "8:38:26 PDT"]
[Termination "Karasyov2 won by resignation"]

1. d4 {[%clk 0:04:59.2]} 1... Nf6 {[%clk 0:04:57.7]} 2. c4 {[%clk 0:04:58.6]}
2... c5 {[%clk 0:04:56.4]} 3. d5 {[%clk 0:04:57.4]} 3... e6 {[%clk 0:04:55.1]}
4. Nc3 {[%clk 0:04:55.4]} 4... d6 {[%clk 0:04:51.5]} 5. e4 {[%clk 0:04:54.2]}
5... exd5 {[%clk 0:04:49.5]} 6. exd5 {[%clk 0:04:50.6]} 6... g6 {[%clk 0:04:48]}
7. Be3 {[%clk 0:04:44.9]} 7... Bg7 {[%clk 0:04:46.3]} 8. Qd2 {[%clk 0:04:40.5]}
8... O-O {[%clk 0:04:43.3]} 9. Rc1 {[%clk 0:04:38.9]} 9... Nbd7 {[%clk
0:04:34.7]} 10. Bh6 {[%clk 0:04:34.9]} 10... Re8+ {[%clk 0:04:29.8]} 11. Be2
{[%clk 0:04:31.8]} 11... Bh8 {[%clk 0:04:28]} 12. Nf3 {[%clk 0:04:24.2]} 12...
Nb6 {[%clk 0:04:18.7]} 13. b3 {[%clk 0:04:22.4]} 13... Bg4 {[%clk 0:04:12.8]}
14. O-O {[%clk 0:04:13.9]} 14... Bxf3 {[%clk 0:04:10.7]} 15. Bxf3 {[%clk
0:04:12.7]} 15... Nbd7 {[%clk 0:04:05.5]} 16. Rfe1 {[%clk 0:04:06.8]} 16... Ne5
{[%clk 0:04:02.2]} 17. Qf4 {[%clk 0:03:54.7]} 17... Nxf3+ {[%clk 0:03:54.6]} 18.
Qxf3 {[%clk 0:03:52.6]} 18... Rxe1+ {[%clk 0:03:42.8]} 19. Rxe1 {[%clk 0:03:51]}
19... Qa5 {[%clk 0:03:38]} 20. Bg5 {[%clk 0:03:32.3]} 20... Nd7 {[%clk
0:03:26.2]} 21. Rc1 {[%clk 0:03:13.1]} 21... Ne5 {[%clk 0:02:36.9]} 22. Qf4
{[%clk 0:02:50.8]} 22... Nd3 {[%clk 0:02:32.8]} 23. Qxd6 {[%clk 0:02:37.5]}
23... Nxc1 {[%clk 0:02:29.5]} 24. Bf6 {[%clk 0:02:24.9]} 24... Bxf6 {[%clk
0:02:23.6]} 25. Qxf6 {[%clk 0:02:22]} 25... Nxa2 {[%clk 0:02:19.3]} 0-1

[Event "Live Chess"]
[Site "Chess.com"]
[Date "2024.06.02"]
[Round "-"]
[White "PhilMaybury64"]
[Black "PaulyD81"]
[Result "1-0"]
[WhiteElo "1517"]
[BlackElo "977"]
[TimeControl "300"]
[EndTime "8:38:32 PDT"]
[Termination "PhilMaybury64 won by resignation"]

1. e4 {[%clk 0:04:56.9]} 1... c5 {[%clk 0:04:57.8]} 2. b4 {[%clk 0:04:53.8]}
2... d6 {[%clk 0:04:50.9]} 3. b5 {[%clk 0:04:50]} 3... a6 {[%clk 0:04:37.1]} 4.
c4 {[%clk 0:04:42.9]} 4... axb5 {[%clk 0:04:26.1]} 5. cxb5 {[%clk 0:04:41.4]}
5... Nf6 {[%clk 0:04:13.6]} 6. Nc3 {[%clk 0:04:37.2]} 6... Nbd7 {[%clk
0:03:54.1]} 7. a4 {[%clk 0:04:31.3]} 7... g6 {[%clk 0:03:40.6]} 8. Nf3 {[%clk
0:04:29.4]} 8... Bg7 {[%clk 0:03:32.1]} 9. d4 {[%clk 0:04:25.3]} 9... cxd4
{[%clk 0:03:26.8]} 10. Nxd4 {[%clk 0:04:23.7]} 10... Nc5 {[%clk 0:03:14.7]} 11.
f3 {[%clk 0:04:07.7]} 11... b6 {[%clk 0:03:06]} 12. Bc4 {[%clk 0:03:56]} 12...
O-O {[%clk 0:02:51.7]} 13. O-O {[%clk 0:03:53.5]} 13... e5 {[%clk 0:02:43.9]}
14. Nc6 {[%clk 0:03:47.5]} 14... Qc7 {[%clk 0:02:28.3]} 15. Nd5 {[%clk
0:03:45.2]} 15... Nxd5 {[%clk 0:02:07.2]} 16. Bxd5 {[%clk 0:03:42.3]} 16... Bb7
{[%clk 0:01:44.7]} 17. Bd2 {[%clk 0:03:35.7]} 17... Bxc6 {[%clk 0:01:39.7]} 18.
Bxc6 {[%clk 0:03:30.7]} 18... Ra7 {[%clk 0:01:28.8]} 19. Ra2 {[%clk 0:03:03.2]}
19... Rfa8 {[%clk 0:01:25.4]} 20. Bxa8 {[%clk 0:02:40.3]} 1-0

[Event "Live Chess"]
[Site "Chess.com"]
[Date "2024.06.02"]
[Round "-"]
[White "JanMur7"]
[Black "educatedlad"]
[Result "1-0"]
[WhiteElo "2272"]
[BlackElo "1733"]
[TimeControl "300"]
[EndTime "8:38:33 PDT"]
[Termination "JanMur7 won by resignation"]

1. e4 {[%clk 0:04:56.9]} 1... c5 {[%clk 0:04:59.5]} 2. Nf3 {[%clk 0:04:55.1]}
2... e6 {[%clk 0:04:58.7]} 3. c3 {[%clk 0:04:53.8]} 3... d5 {[%clk 0:04:57.1]}
4. exd5 {[%clk 0:04:52.6]} 4... Qxd5 {[%clk 0:04:57]} 5. d4 {[%clk 0:04:52.4]}
5... Nf6 {[%clk 0:04:56.1]} 6. Na3 {[%clk 0:04:50.8]} 6... Nc6 {[%clk
0:04:54.4]} 7. Bc4 {[%clk 0:04:49.1]} 7... Qe4+ {[%clk 0:04:48.8]} 8. Qe2 {[%clk
0:04:45.9]} 8... Qxe2+ {[%clk 0:04:47.3]} 9. Bxe2 {[%clk 0:04:45.8]} 9... cxd4
{[%clk 0:04:46.1]} 10. Nb5 {[%clk 0:04:44.7]} 10... Kd8 {[%clk 0:04:31.2]} 11.
Nbxd4 {[%clk 0:04:43.3]} 11... Nxd4 {[%clk 0:04:29.9]} 12. Nxd4 {[%clk
0:04:43.2]} 12... Bc5 {[%clk 0:04:28.7]} 13. Be3 {[%clk 0:04:41.8]} 13... Nd5
{[%clk 0:04:26.9]} 14. Nxe6+ {[%clk 0:04:40.8]} 14... fxe6 {[%clk 0:04:25.9]}
15. Bxc5 {[%clk 0:04:40.4]} 15... Bd7 {[%clk 0:04:24.1]} 16. O-O-O {[%clk
0:04:38.5]} 16... Bc6 {[%clk 0:04:22.5]} 17. c4 {[%clk 0:04:37.8]} 1-0

[Event "Live Chess"]
[Site "Chess.com"]
[Date "2024.06.02"]
[Round "-"]
[White "Ferrarifan27"]
[Black "gobbles19"]
[Result "0-1"]
[WhiteElo "2147"]
[BlackElo "2241"]
[TimeControl "300"]
[EndTime "8:38:46 PDT"]
[Termination "gobbles19 won by resignation"]

1. e4 {[%clk 0:04:58.8]} 1... c5 {[%clk 0:04:58.2]} 2. Nf3 {[%clk 0:04:57.4]}
2... e6 {[%clk 0:04:55.8]} 3. d4 {[%clk 0:04:56.2]} 3... cxd4 {[%clk 0:04:54.5]}
4. Nxd4 {[%clk 0:04:56.1]} 4... a6 {[%clk 0:04:53.6]} 5. Nc3 {[%clk 0:04:54.5]}
5... Qc7 {[%clk 0:04:51.6]} 6. Bd2 {[%clk 0:04:52.2]} 6... b5 {[%clk 0:04:48.2]}
7. a3 {[%clk 0:04:50.5]} 7... Bb7 {[%clk 0:04:45.6]} 8. Bd3 {[%clk 0:04:49.8]}
8... d6 {[%clk 0:04:42.4]} 9. O-O {[%clk 0:04:48]} 9... Nf6 {[%clk 0:04:40.3]}
10. Re1 {[%clk 0:04:46.6]} 10... Nbd7 {[%clk 0:04:39.9]} 11. Qe2 {[%clk
0:04:44.3]} 11... Be7 {[%clk 0:04:39.4]} 12. Kh1 {[%clk 0:04:41.9]} 12... O-O
{[%clk 0:04:36.4]} 13. f3 {[%clk 0:04:36.7]} 13... Ne5 {[%clk 0:04:30.2]} 14.
Nb3 {[%clk 0:04:35.4]} 14... Nc4 {[%clk 0:04:21.2]} 15. Bxc4 {[%clk 0:04:31.4]}
15... bxc4 {[%clk 0:04:21.1]} 16. Nd4 {[%clk 0:04:26.9]} 16... Rac8 {[%clk
0:04:17.6]} 17. f4 {[%clk 0:04:20.3]} 17... d5 {[%clk 0:04:11.3]} 18. e5 {[%clk
0:04:16.5]} 18... Ne4 {[%clk 0:04:10.3]} 19. Nxe4 {[%clk 0:04:14.8]} 19... dxe4
{[%clk 0:04:10.2]} 20. Bc3 {[%clk 0:04:08.8]} 20... Bc5 {[%clk 0:04:05.7]} 21.
Rad1 {[%clk 0:04:04.9]} 21... Rfd8 {[%clk 0:04:04.4]} 22. Qg4 {[%clk 0:04:01.4]}
22... Qb6 {[%clk 0:04:01.2]} 23. Ne2 {[%clk 0:03:55]} 23... Rxd1 {[%clk
0:03:55.7]} 24. Rxd1 {[%clk 0:03:54.9]} 24... Rd8 {[%clk 0:03:55.1]} 25. Ng3
{[%clk 0:03:53.4]} 25... e3 {[%clk 0:03:43.4]} 26. Nh5 {[%clk 0:03:42]} 26...
Rxd1+ {[%clk 0:03:41.2]} 27. Qxd1 {[%clk 0:03:40.1]} 27... Qc6 {[%clk
0:03:31.1]} 28. Qe2 {[%clk 0:03:29.1]} 28... Qe4 {[%clk 0:03:19.5]} 29. h3
{[%clk 0:03:09.6]} 29... Qg6 {[%clk 0:02:57.9]} 30. Kh2 {[%clk 0:03:01.2]} 30...
h6 {[%clk 0:02:53.6]} 31. Ng3 {[%clk 0:02:52.7]} 31... Bd5 {[%clk 0:02:48.1]}
32. Qd1 {[%clk 0:02:48.9]} 32... h5 {[%clk 0:02:28.5]} 33. f5 {[%clk 0:02:46]}
33... Qg5 {[%clk 0:02:19.2]} 34. fxe6 {[%clk 0:02:42.1]} 34... Bxe6 {[%clk
0:02:14]} 35. Qxh5 {[%clk 0:02:37.2]} 35... Qxh5 {[%clk 0:02:12.9]} 36. Nxh5
{[%clk 0:02:36.7]} 36... Bf5 {[%clk 0:02:08.8]} 37. Kg3 {[%clk 0:02:24.6]} 37...
Bxc2 {[%clk 0:02:05.9]} 38. Kf3 {[%clk 0:02:23.5]} 38... Bd1+ {[%clk 0:02:03.6]}
39. Ke4 {[%clk 0:02:20.5]} 39... Bxh5 {[%clk 0:02:03.1]} 40. g4 {[%clk
0:02:18.5]} 40... Bg6+ {[%clk 0:02:02.2]} 41. Kf3 {[%clk 0:02:17.7]} 41... Bd3
{[%clk 0:02:00.9]} 42. h4 {[%clk 0:02:14.4]} 42... Kf8 {[%clk 0:01:59]} 43. g5
{[%clk 0:02:12.9]} 43... Ke7 {[%clk 0:01:58.5]} 44. h5 {[%clk 0:02:12]} 44...
Ke6 {[%clk 0:01:58.1]} 45. h6 {[%clk 0:02:11.3]} 45... gxh6 {[%clk 0:01:57.7]}
46. gxh6 {[%clk 0:02:10.5]} 46... Bf8 {[%clk 0:01:54.3]} 47. Kxe3 {[%clk
0:02:07.8]} 47... Bxh6+ {[%clk 0:01:53.5]} 48. Kd4 {[%clk 0:02:07.1]} 48... Bg7
{[%clk 0:01:50.6]} 49. Kc5 {[%clk 0:02:04.3]} 49... Bxe5 {[%clk 0:01:49.2]} 50.
Kb6 {[%clk 0:02:01.6]} 50... Bxc3 {[%clk 0:01:48.2]} 51. bxc3 {[%clk 0:02:01.3]}
51... f5 {[%clk 0:01:47.7]} 52. Kxa6 {[%clk 0:02:00.7]} 52... f4 {[%clk
0:01:47.6]} 0-1